Cogmind - Beta 13 @@@ ROGUE MODE // 2024.04.11 @ 22:52:22 Player: SpaceWalrus Result: Destroyed by G-47 Trooper with Particle Gun Performance ------------- Evolutions (2) 1000 Regions Visited (5) 1000 Robots Destroyed (44) 220 Value Destroyed (937) 937 Prototype IDs (0) 0 Alien Tech Used (0) 0 Bonus (14) 14 TOTAL SCORE: 3171 Bonus ------- Follower Combat Kills 14 Cogmind --------- Core Integrity 0/550 Matter 300/300 Energy 100/100 System Corruption 2% Temperature Cool (9) Movement Core (50) Location -8/Storage Parts ------- > --- POWER (1) -------- (None) > --- PROPULSION (3) --- (None) > --- UTILITY (5) ------ (None) > --- WEAPON (2) ------- (None) > --- INVENTORY (5) ---- Hardened Medium Armor Plating Hacking Suite Hacking Suite Improved Datajack Peak State ------------ > --- POWER ------------ Light Deuterium Engine > --- PROPULSION ------- Carbon-fiber Leg Carbon-fiber Leg Carbon-fiber Leg > --- UTILITY ---------- Small Storage Unit Improved Sensor Array Makeshift Terrain Scanner ECM Suite Makeshift Light Armor Plating > --- WEAPON ----------- Battle Cannon Concussive RPG > --- INVENTORY -------- Light Deuterium Engine Improved Heat Sink Improved Heat Sink Hardened Medium Armor Plating Hacking Suite Beamcaster Improved Datajack [Rating: 35] Favorites ----------- Power Light Angular Momentum Engine Engine Light Angular Momentum Engine Power Core Light Nuclear Core Propulsion Carbon-fiber Leg Leg Carbon-fiber Leg Utility Small Storage Unit Device Makeshift Terrain Scanner Storage Small Storage Unit Processor Targeting Computer Protection Makeshift Light Armor Plating Weapon Light Assault Rifle Energy Gun Medium Laser Ballistic Gun Light Assault Rifle Ballistic Cannon Light Cannon Launcher Subdweller Shrapnel Launcher Build | -11 -10 -10 -10 -8 -8 ------- Run | Yrd Mat Min Sub Mat Sto Slots Evolved 4 | . . . . 4 . Power . | . . . . . . Propulsion 1 | . . . . 1 . Utility 3 | . . . . 3 . Weapon . | . . . . . . Parts Attached 39 | 8 10 5 2 9 5 Power 5 | 1 1 1 . 1 1 Engine 4 | 1 . 1 . 1 1 Core 1 | . 1 . . . . Reactor . | . . . . . . Propulsion 10 | 2 2 2 . 4 . Treads . | . . . . . . Leg 10 | 2 2 2 . 4 . Wheel . | . . . . . . Hover . | . . . . . . Flight . | . . . . . . Utility 11 | 2 1 2 . 4 2 Device 8 | 1 . 2 . 3 2 Storage 1 | 1 . . . . . Processor 1 | . 1 . . . . Hackware . | . . . . . . Protection 1 | . . . . 1 . Artifact . | . . . . . . Weapon 13 | 3 6 . 2 . 2 Energy Gun 4 | 1 2 . . . 1 Energy Cannon . | . . . . . . Ballistic Gun 5 | 2 3 . . . . Ballistic Cannon 2 | . 1 . 1 . . Launcher 2 | . . . 1 . 1 Special Weapon . | . . . . . . Impact Weapon . | . . . . . . Slashing Weapon . | . . . . . . Piercing Weapon . | . . . . . . Special Melee Weapon . | . . . . . . Unidentified Prototypes . | . . . . . . Parts Lost 20 | . 7 . . . 13 Power 3 | . 1 . . . 2 Propulsion 5 | . 2 . . . 3 Utility 6 | . 1 . . . 5 Weapon 6 | . 3 . . . 3 Highest Loss Streak 13 | . 7 . . . 13 To Critical Strikes . | . . . . . . Average Slot Usage (%) 95 | . 93 100 99 97 68 Engine 10 | . 4 12 14 9 6 Core 2 | . 8 1 . . . Leg 26 | . 25 28 28 24 17 Device 13 | . 3 13 14 27 19 Storage 12 | . 14 14 14 9 7 Processor 2 | . 10 . . . . Protection 1 | . . . . 9 7 Energy Gun 2 | . 9 . . . 3 Ballistic Gun 9 | . 13 14 4 . . Ballistic Cannon 9 | . 3 14 13 9 3 Launcher 3 | . . . 9 9 3 Naked Turns 39 | . . . . . 39 Heaviest Build 33 | 15 15 19 26 33 29 Greatest Support 45 | 20 20 30 30 45 45 Greatest Overweight (x) 5 | . 2 . . 1 5 Average Overweight (x) . | . . . . . . Largest Inventory Capacity 8 | 8 8 8 8 8 8 Average Capacity 7 | 7 8 8 8 8 7 Most Carried 8 | 6 8 8 8 8 8 Average Carried 7 | 4 6 7 8 7 5 Final Capacity 8 | 8 8 8 8 8 5 Final Carried 8 | 5 8 8 8 8 4 Class Distribution -------------------- 72% | Scavenger-Mutant 23% | Mutant 3% | Derelict-Mutant Dominant Class ---------------- Mutant | -10/Materials Scavenger-Mutant | -10/Mines Scavenger-Mutant | -10/Subcaves Scavenger-Mutant | -8/Materials Scavenger-Mutant | -8/Storage Resources | -11 -10 -10 -10 -8 -8 ----------- Run | Yrd Mat Min Sub Mat Sto Matter Collected 1260 | 299 294 222 108 297 40 Remotely . | . . . . . . Salvage Created 1436 | 126 538 144 104 439 85 Parts 92 | 13 34 15 6 21 3 Haulers Intercepted 1 | . 1 . . . . Recyclers Shooed 8 | 1 4 . . 1 2 Parts Field Recycled . | . . . . . . Retrieved Matter . | . . . . . . Parts Self-Destructed 10 | . . . 10 . . Prevented . | . . . . . . Kills | -11 -10 -10 -10 -8 -8 ------- Run | Yrd Mat Min Sub Mat Sto Combat Hostiles Destroyed 20 | . 9 3 3 5 . Guns 9 | . 9 . . . . Cannons 8 | . . 3 2 3 . AOE 3 | . . . 1 2 . Classes Destroyed 11 | 2 6 . 2 1 . Worker 5 | . 3 1 . 1 . Builder 2 | . 1 . . 1 . Tunneler 7 | 4 . 3 . . . Hauler 1 | . 1 . . . . Recycler 4 | 1 1 . . 1 1 Watcher 5 | . 2 . . 3 . Swarmer 4 | . 3 1 . . . Grunt 11 | . 6 2 . 3 . Sentry 2 | . . . 1 1 . Hunter 1 | . . . . 1 . Subdweller 2 | . . . 2 . . Best Kill Streak 3 | 3 3 2 2 3 1 Combat Bots Only 3 | . 3 2 2 3 . Max Kills in Single Turn 2 | 1 2 1 1 2 1 Gunslinging 1 | . 1 . . . . Exploded 1 | . . . 1 1 . Melee . | . . . . . . Uniques/NPCs Destroyed . | . . . . . . Combat | -11 -10 -10 -10 -8 -8 -------- Run | Yrd Mat Min Sub Mat Sto Hostile Shots Fired 268 | . 89 11 9 25 134 Missed 89 | . 29 5 7 8 40 Damage Taken 2689 | . 741 78 32 287 1551 Core 695 | . 142 . . 34 519 Absorbed by Shields . | . . . . . . Core Remaining (%) 71 | 100 . . 43 . . Volleys Fired 178 | 12 87 16 4 33 26 Largest 2 | 2 2 2 2 2 2 Hottest 85 | 70 85 55 79 79 79 Shots Fired 278 | 24 148 35 7 36 28 Gun 197 | 24 135 18 . . 20 Cannon 74 | . 13 17 4 34 6 Launcher 7 | . . . 3 2 2 Special . | . . . . . . Kinetic 190 | 12 93 35 7 36 7 Thermal 87 | 12 55 . . . 20 Explosive 1 | . . . . . 1 Electromagnetic . | . . . . . . Robot Hit Streak 7 | 4 7 5 4 4 3 Robot Miss Streak 4 | 3 4 2 1 2 2 Penetration Max . | . . . . . . Secondary Targets 1 | . 1 . . . . Max Gunslinging Chain 1 | . 1 . . . . Shots Hit Robots 150 | 12 82 19 4 19 14 Core Hits 72 | 5 30 10 4 17 6 Critical Kills . | . . . . . . Critical Parts Destroyed . | . . . . . . Critical Strikes 9 | . 4 1 . 3 1 Burn 4 | . 3 . . . 1 Blast 5 | . 1 1 . 3 . Melee Attacks . | . . . . . . Impact . | . . . . . . Slashing . | . . . . . . Piercing . | . . . . . . Sneak Attacks . | . . . . . . Combat Hostiles . | . . . . . . Follow-up Attacks . | . . . . . . Damage Inflicted 2835 | 151 1097 289 286 518 494 Guns 1450 | 151 1006 55 . . 238 Cannons 805 | . 91 227 34 376 77 Explosions 567 | . . . 252 139 176 Melee . | . . . . . . Ramming 13 | . . 7 . 3 3 Kinetic 1937 | 90 628 282 286 515 136 Thermal 768 | 61 469 . . . 238 Explosive 117 | . . . . . 117 Electromagnetic . | . . . . . . Impact . | . . . . . . Slashing . | . . . . . . Piercing . | . . . . . . Highest Corruption 3 | . 3 3 3 2 2 Average Corruption 2 | . 2 3 3 1 2 Corruption Purged . | . . . . . . Corruption Blocked . | . . . . . . Effects 46 | . 15 19 8 1 3 Message Errors 14 | . 7 4 2 . 1 Matter Fused 11 | . 3 6 1 . 1 Heat Flow Errors 10 | . 3 2 5 . . Energy Discharges 2 | . . 1 . . 1 Data Loss (minor) 3 | . 1 2 . . . Misfires 5 | . 1 3 . 1 . Alerts 1 | . . 1 . . . Overload Shots . | . . . . . . Overflow Damage 9 | . 5 . . 3 1 Projectiles 5 | . 5 . . . . Explosions 4 | . . . . 3 1 Melee . | . . . . . . Knockbacks 6 | . 2 2 . 1 1 Impact . | . . . . . . Kinetic 6 | . 2 2 . 1 1 Secondary . | . . . . . . Self-Inflicted Damage 92 | . . . . . 92 Shots 2 | . . . . . 2 Rammed 2 | . . . . . 2 Targets Rammed 5 | . . 2 . 1 2 Kicked 3 | . . 2 . 1 . Crushed . | . . . . . . Highest Temperature 440 | 36 264 213 246 75 440 Average Temperature 90 | 15 85 48 100 27 215 Received Heat Transfer 1518 | . 432 60 . 144 882 Effects 3 | . . . . . 3 Shutdowns 2 | . . . . . 2 Energy Bleed 1 | . . . . . 1 Siege Activations . | . . . . . . Robots Corrupted . | . . . . . . Combat Hostiles . | . . . . . . Parts Fried . | . . . . . . Impact Corruptions . | . . . . . . Robots Melted . | . . . . . . Combat Hostiles . | . . . . . . Parts Melted 1 | . 1 . . . . Heat Transferred 2109 | 185 1443 . . . 481 Parts Sabotaged . | . . . . . . Parts Stolen . | . . . . . . Parts Stripped . | . . . . . . Power Chain Reactions . | . . . . . . Alert | -11 -10 -10 -10 -8 -8 ------- Run | Yrd Mat Min Sub Mat Sto Peak Influence 264 | 25 213 92 . 264 68 Initial 35 | . 16 24 . . 35 Average 73 | 12 97 45 . 147 27 Maximum Alert Level 1 | . 1 . . 1 . Low Security (%) 93 | 100 90 100 . 78 100 Level 1 6 | . 9 . . 21 . Level 2 . | . . . . . . Level 3 . | . . . . . . Level 4 . | . . . . . . Level 5 . | . . . . . . High Security . | . . . . . . Max Security . | . . . . . . Squads Dispatched 1 | . . . . . 1 Investigation . | . . . . . . Extermination . | . . . . . . Reinforcement 1 | . . . . . 1 Assault . | . . . . . . Garrison . | . . . . . . Intercept . | . . . . . . Searches Triggered . | . . . . . . Construction Impeded . | . . . . . . Haulers Reinforced . | . . . . . . Active Scanning Responses . | . . . . . . Cargo Convoy Interrupts . | . . . . . . Stealth | -11 -10 -10 -10 -8 -8 --------- Run | Yrd Mat Min Sub Mat Sto Distress Signals 3 | . 1 . . 1 1 Communications Jammed . | . . . . . . Distress Signals . | . . . . . . Times Spotted 53 | . 20 6 3 12 12 Peak Tracking Total 9 | . 4 2 2 4 9 Tactical Retreats 4 | . 1 1 . 2 . Traps | -11 -10 -10 -10 -8 -8 ------- Run | Yrd Mat Min Sub Mat Sto Traps Triggered 4 | . 2 . . 2 . Indirectly . | . . . . . . Trap Hack Attempts . | . . . . . . Triggered . | . . . . . . Disarmed . | . . . . . . Reprogrammed . | . . . . . . Reused . | . . . . . . Traps Extracted . | . . . . . . Installed . | . . . . . . Triggered . | . . . . . . Machines | -11 -10 -10 -10 -8 -8 ---------- Run | Yrd Mat Min Sub Mat Sto Machines Disabled 2 | . . . . 1 1 Max in Single Turn 1 | . . . . 1 1 Machines Repaired . | . . . . . . Machines Dismantled . | . . . . . . Machines Sabotaged . | . . . . . . Overloaded Fab Kills . | . . . . . . Hacking | -11 -10 -10 -10 -8 -8 --------- Run | Yrd Mat Min Sub Mat Sto Machines Accessed 3 | . 2 . 1 . . Terminals 2 | . 2 . . . . Fabricators . | . . . . . . Repair Stations . | . . . . . . Recycling Units . | . . . . . . Scanalyzers . | . . . . . . Garrison Access . | . . . . . . Total Hacks 5 | . 3 . 2 . . Successful 3 | . 1 . 2 . . Failed 2 | . 2 . . . . Catastrophic . | . . . . . . Database Lockouts . | . . . . . . Manual . | . . . . . . Terminals 3 | . 3 . . . . Fabricators . | . . . . . . Repair Stations . | . . . . . . Recycling Units . | . . . . . . Scanalyzers . | . . . . . . Garrison Access . | . . . . . . Terminal Hacks 3 | . 1 . 2 . . Record 3 | . 1 . 2 . . Fabricator Hacks . | . . . . . . Repair Station Hacks . | . . . . . . Recycling Unit Hacks . | . . . . . . Scanalyzer . | . . . . . . Garrison Access Hacks . | . . . . . . Unauthorized Hacks . | . . . . . . Terminals . | . . . . . . Fabricators . | . . . . . . Repair Stations . | . . . . . . Recycling Units . | . . . . . . Scanalyzers . | . . . . . . Garrison Access . | . . . . . . Data Cores Recovered . | . . . . . . Used . | . . . . . . Hacking Detections 1 | . 1 . . . . Full Trace Events . | . . . . . . Feedback Events . | . . . . . . Feedback Blocked . | . . . . . . Robot Schematics Acquired . | . . . . . . Robots Built . | . . . . . . Authchips . | . . . . . . Time . | . . . . . . Total Robot Build Rating . | . . . . . . Part Schematics Acquired . | . . . . . . Parts Built . | . . . . . . Authchips . | . . . . . . Time . | . . . . . . Total Part Build Rating . | . . . . . . Parts Repaired . | . . . . . . Time . | . . . . . . Parts Recycled . | . . . . . . Recycled Matter . | . . . . . . Retrieved Matter . | . . . . . . Retrieved Components . | . . . . . . Parts Scanalyzed . | . . . . . . Part Schematics Acquired . | . . . . . . Parts Damaged . | . . . . . . Bothacking | -11 -10 -10 -10 -8 -8 ------------ Run | Yrd Mat Min Sub Mat Sto Used RIF Installer . | . . . . . . Robots Hacked . | . . . . . . Non-combat . | . . . . . . Combat . | . . . . . . Robot Hacks Applied . | . . . . . . Relay Couplers Released . | . . . . . . Fabnet Peak Effective % . | . . . . . . Robots Rewired . | . . . . . . Allies Hacked . | . . . . . . Hacks Repelled . | . . . . . . Allies | -11 -10 -10 -10 -8 -8 -------- Run | Yrd Mat Min Sub Mat Sto Total Allies 2 | . . 2 . . . Largest Group 2 | . . 2 . . . Highest-Rated Group 46 | . . 46 . . . Highest-Rated Ally 31 | . . 31 . . . Total Orders . | . . . . . . Ally Attacks 5 | . . 5 . . . Total Damage 42 | . . 42 . . . Kills 2 | . . 2 . . . Allies Corrupted . | . . . . . . Allies Melted . | . . . . . . Intel | -11 -10 -10 -10 -8 -8 ------- Run | Yrd Mat Min Sub Mat Sto Robot Analysis Total . | . . . . . . Derelict Logs Recovered 4 | . . 3 1 . . Drone Launches . | . . . . . . Drone Recoveries . | . . . . . . Exploration | -11 -10 -10 -10 -8 -8 ------------- Run | Yrd Mat Min Sub Mat Sto Turns Passed 3397 | 187 773 1185 577 464 211 Spaces Moved 2377 | 132 429 907 465 287 157 Core 141 | 37 22 . . . 82 Treads . | . . . . . . Legs 2236 | 95 407 907 465 287 75 Wheels . | . . . . . . Hover . | . . . . . . Flight . | . . . . . . Fastest Speed 50 | 50 100 120 120 120 50 Average Speed 118 | 100 121 120 120 130 92 Slowest Speed 300 | 120 190 120 120 190 300 Overloaded Moves . | . . . . . . Propulsion Burnouts . | . . . . . . Robots Hopped . | . . . . . . Cave-ins Triggered . | . . . . . . Exploration Rate (%) 40 | 5 54 94 42 24 23 Regions Visited 5 Branch Regions 3 Pre-discovered Areas 3 | . . . 3 . . Known Exits Taken 1 | . . . . 1 . Unknown Exits Taken 4 | 1 1 1 1 . . Scrap Searched 3 | . . 2 1 . . Spaces Dug . | . . . . . . Terrain Destroyed 83 | . . . 31 29 23 Melee . | . . . . . . Projectile 3 | . . . . 3 . AOE 80 | . . . 31 26 23 Terrain Rammed . | . . . . . . Walls Destroyed . | . . . . . . Machines Disabled . | . . . . . . Actions | -11 -10 -10 -10 -8 -8 --------- Run | Yrd Mat Min Sub Mat Sto Total 2697 | 161 540 977 477 345 197 Wait 41 | . 2 31 3 1 4 Move 2372 | 131 428 906 464 286 157 Hop . | . . . . . . Pick Up 38 | 10 11 8 1 7 1 Fast Attach 9 | 2 1 1 2 3 . Attach 20 | 5 6 . . 4 5 Detach . | . . . . . . Swap 10 | 1 3 4 . 2 . Drop 24 | . 2 9 3 8 2 Fire 178 | 12 87 16 4 33 26 Melee . | . . . . . . Ram 2 | . . . . . 2 Kick 3 | . . 2 . 1 . Crush . | . . . . . . Escape Stasis . | . . . . . . Rewire . | . . . . . . Trap . | . . . . . . Miscellaneous . | . . . . . . Route ------- -11/Scrapyard -10/Materials (discovered 2 exits: [*Mat] / [*Min]) -10/Mines (discovered 2 exits: [*Mat] / *Sub) -10/Subcaves -8/Materials (discovered 2 exits: *Sto x2) -8/Storage History --------- Turn | Location | Event 3 | -11/Scrapyard | Discovered new exit (range 14) 188 | -11/Scrapyard | Entered Materials 312 | -10/Materials | Build established: Mutant 440 | -10/Materials | Core integrity fell below 50% 464 | -10/Materials | Lost 7 parts (1p2n1u3w) 634 | -10/Materials | Discovered new exit (range 11) 808 | -10/Materials | Discovered new exit (range 16) 961 | -10/Materials | Entered Mines 1329 | -10/Mines | Build established: Scavenger-Mutant 1534 | -10/Mines | Discovered new exit (range 15) 1555 | -10/Mines | Learned Materials security intel 1630 | -10/Mines | Learned Materials emergency access door positions 2143 | -10/Mines | Discovered new exit (range 3) 2146 | -10/Mines | Entered Subcaves 2369 | -10/Subcaves | Learned location of Zion (-6) 2391 | -10/Subcaves | Shifting Twisted Machinery released Mak. Light Armor Plating 2409 | -10/Subcaves | Shifting Twisted Machinery released Battle Cannon 2535 | -10/Subcaves | Met a Zionite searching for "candidates" 2567 | -10/Subcaves | Visited Clippyterm 2571 | -10/Subcaves | Learned location of Section 7 (-2) 2696 | -10/Subcaves | Discovered new exit (range 15) 2723 | -10/Subcaves | Entered Materials 2723 | -8/Materials | Evolved 4 slots: Propulsion x1, Utility x3 2724 | -8/Materials | Identified exit to Storage 2774 | -8/Materials | Discovered exit to Storage (range 15) 3187 | -8/Materials | Entered Storage 3342 | -8/Storage | Core integrity fell below 50% 3363 | -8/Storage | Core integrity fell below 20% 3390 | -8/Storage | Lost 13 parts (2p3n5u3w) 3398 | -8/Storage | Destroyed by G-47 Trooper with Particle Gun Last Messages --------------- Dropped Mak. Light Armor Plating. U-05 Engineer lays Concrete. ECM Suite destroyed. U-05 Engineer lays Concrete. U-05 Engineer builds a Wall. Acquired 40 matter. U-05 Engineer builds a Wall. O-24 Administrator sends out distress signal. O-24 Administrator: "IFF HANDSHAKE FAILED. SECURING TERMINAL." O-24 Administrator uses terminal to summon reinforcements. ALERT: Hostiles spotted, dispatching reinforcements to Terminal S002. O-24 Administrator locks terminal. U-05 Engineer lays Concrete. Acquired Hacking Suite. Slammed into R-06 Scavenger. Destabilizing: Core damaged (-11). Slammed into G-47 Trooper. Map ----- +----------------------------------------------------+ | | | | | | | | | | | | | | | | | | | ????###########??????????????????? | | ????# / #??????????????????? | | ????#= #??????????????????? | | ????# #??????????????????? | | ????#! #??????????????????? | | ????#####+#####??????????????????? | | ????????# #??????????????????????? | | ????????# #??????????????????????? | | ######### #??????????????????????? | | # + #??????????????????????? | | # # w#??????????????????????? | | # # #??????????????????????? | | # + #??????????????????????? | | # # #??"""?????????????????? | | # # #?? #?????????????????? | | # + glg#?? #?????????????????? | | # ####@### #?????????????????? | | # #??#gr #?????????????????? | | ######??#g #?????????????????? | | ????????#gg #?????????????????? | | ????????# ##????????????????? | | ????????# ##+###???????????? | | ?##?#?### #???????????? | | ?# ??#"" +???????????? | | # ##"T """ a #???????????? | | # ""Y """ #???????????? | | # # """k #???????????? | | ?## o "" #???????????? | | ?#### # "" #???#???????? | | ????##### T" #???????????? | | ????#""## "" #???????????? | | ??#?## % "" ????????? | | ????## % ???????? | | ????## ???????? | | ??#?#" ########+ ######????????? | | ??#?## # ??????????? | | ????## ### ? ????????? | | #???#" #???""" """ """?????????? | | ????## #???""" ""??"???????????? | | ????## #?????" ??????"?????????? | | ?????# ##??????? ??????????#???? | +----------------------------------------------------+ Best States ------------- Heat Dissipation 45 Energy Generation 18 Energy Capacity 250 Matter Stores 300 Matter Capacity 300 Sight Range 16 Robot Scan Range 15 Terrain Scan Range 18 Terrain Scan Density 10 ECM Strength 1 Armor Coverage 100 Evasion (%) 55 Targeting Accuracy 5 Item Schematics ----------------- None Robot Schematics ------------------ None Fabricated ------------ Nothing Alien Tech Used ----------------- None Achievements -------------- None Challenges ------------ None Game ------ Seed AssemblyDispersionAutogun Manual? 0 Play Time 00:27:36 Cumulative 14.6 hours Start 2024.04.11 @ 22:12:16 End 2024.04.11 @ 22:52:22 Sessions 3 Manual Loads 0 Difficulty Rogue Special Mode None Game No. 19 Rogue 19 Adventurer 0 Explorer 0 Win Type - Total 0 Types 0/0/0/0/0/0/0/0/0 Lore% 15 Gallery% 24 Achievement% 16 Wizard Run 0 Options --------- Layout 1 ASCII 0 Keyboard 0 Movement Numpad Keybinds 0 Fullscreen 1 Font 24/Smallcaps Map View 50x40 Zoom Use 0% Tactical HUD 0 Map Filters NONE Filters NONE Steam 1 RUN: fb2c3d2c-3934-4b3a-b01a-61d941dc39b8